bitfinex/quotes_BTCUSD_20250515
["timestamp","ask_amount","ask_price","bid_price","bid_amount"]
[1747310815695,1.51448731,102410.0,102400.0,0.00301696]
[1747310817043,1.50448731,102410.0,102400.0,0.00301696]
[1747310817467,1.49448731,102410.0,102400.0,0.00301696]
[1747310817742,1.49408731,102410.0,102400.0,0.00301696]
[1747310817956,1.50408731,102410.0,102400.0,0.00301696]
[1747310818614,1.5394825,102410.0,102400.0,0.00301696]
[1747310818816,1.5294825,102410.0,102400.0,0.00301696]
[1747310819019,1.5394825,102410.0,102400.0,0.00301696]
[1747310820181,1.50408731,102410.0,102400.0,0.00301696]
[1747310820971,1.49408731,102410.0,102400.0,0.00301696]
[1747310821180,1.50408731,102410.0,102400.0,0.00301696]
[1747310822322,0.21488504,102380.0,102370.0,0.0317]
[1747310822555,0.2149484,102350.0,102340.0,0.00985929]
[1747310822780,0.20519815,102340.0,102330.0,0.05954361]
[1747310822999,0.30250755,102340.0,102330.0,0.09174361]
[1747310823244,0.30250755,102340.0,102330.0,0.10133521]
[1747310823467,0.31227861,102340.0,102330.0,0.31265986]
[1747310823705,0.50403861,102340.0,102330.0,0.09833226]
[1747310823925,0.31227861,102340.0,102330.0,0.09833226]
[1747310824191,0.31227861,102340.0,102330.0,0.11287311]
[1747310824648,0.31227861,102340.0,102330.0,0.11487311]
[1747310824875,0.31227861,102340.0,102330.0,0.10033226]
[1747310825304,0.31227861,102340.0,102330.0,0.10233226]
[1747310825490,0.50403861,102340.0,102330.0,0.10233226]
[1747310826666,0.50403861,102340.0,102330.0,0.04278865]
[1747310830245,0.50403861,102340.0,102330.0,0.04278883]
[1747310833238,0.50403861,102340.0,102330.0,0.01058883]
[1747310833896,0.50403861,102340.0,102330.0,0.04118883]
[1747310836242,0.59794126,102340.0,102330.0,0.01058883]
[1747310836448,0.59794126,102340.0,102330.0,0.0044823]
[1747310836564,0.61414126,102340.0,102330.0,0.0044823]
[1747310836767,0.52023861,102340.0,102330.0,0.0044823]
[1747310836994,0.53533861,102340.0,102330.0,0.0024823]
[1747310837631,0.53533861,102340.0,102330.0,0.0034823]
[1747310838012,0.53533861,102340.0,102330.0,0.0024823]
[1747310838231,0.63364801,102340.0,102330.0,0.0024823]
[1747310839100,0.63364801,102340.0,102330.0,0.0004823]
[1747310839312,0.64859649,102340.0,102330.0,0.0004823]
[1747310840829,0.98859649,102340.0,102330.0,0.0004823]
[1747310842080,0.79683649,102340.0,102330.0,0.0004823]
[1747310842274,1.18239649,102340.0,102330.0,0.0004823]
[1747310844077,1.19239649,102340.0,102330.0,0.0004823]
[1747310844282,0.21503206,102310.0,102300.0,0.031]
[1747310844484,0.21503206,102310.0,102300.0,0.03104819]
[1747310844485,0.31234146,102310.0,102300.0,0.03104819]
[1747310844715,0.50358146,102310.0,102300.0,0.03104819]
[1747310845332,0.50358146,102310.0,102300.0,0.03304819]
[1747310846676,0.50358146,102310.0,102300.0,0.03504819]
[1747310847489,0.50358146,102310.0,102300.0,0.03304819]
[1747310847914,0.54109645,102310.0,102300.0,0.03404819]
[1747310848091,0.50358146,102310.0,102300.0,0.03404819]
[1747310848492,0.49380773,102310.0,102300.0,0.03404819]
[1747310848693,0.30256773,102310.0,102300.0,0.03404819]
[1747310849307,0.30256773,102310.0,102300.0,0.04015668]
[1747310849719,0.30256773,102310.0,102300.0,0.02515668]
[1747310850054,0.35066773,102310.0,102300.0,0.00915668]
[1747310850268,0.44523068,102310.0,102300.0,0.00915668]
[1747310850480,0.35066773,102310.0,102300.0,0.00304819]
[1747310851019,0.30256773,102310.0,102300.0,0.00304819]
[1747310851463,0.31806773,102310.0,102300.0,0.00304819]
[1747310852004,0.30256773,102310.0,102300.0,0.00304819]
[1747310853614,0.38107992,102310.0,102300.0,0.00304819]
[1747310853836,0.43187713,102310.0,102300.0,0.00304819]
[1747310855043,0.33456773,102310.0,102300.0,4.819e-05]
[1747310855507,0.33556773,102310.0,102300.0,4.819e-05]
[1747310857429,0.67556773,102310.0,102300.0,4.819e-05]
[1747310860077,1.11052773,102310.0,102300.0,4.819e-05]
[1747310860283,0.67556773,102310.0,102300.0,4.819e-05]
[1747310860487,1.20440268,102310.0,102300.0,4.819e-05]
[1747310860705,0.85984773,102310.0,102300.0,4.819e-05]
[1747310860914,1.07756773,102310.0,102300.0,0.03204819]
[1747310861120,1.07956773,102310.0,102300.0,0.03204819]
[1747310861326,1.08156773,102310.0,102300.0,0.03204819]
[1747310862187,1.08148773,102310.0,102300.0,0.03204819]
[1747310862319,1.08140773,102310.0,102300.0,0.03204819]
[1747310862750,0.74140773,102310.0,102300.0,0.03204819]
[1747310862950,0.74136773,102310.0,102300.0,0.03204819]
[1747310863149,0.74128773,102310.0,102300.0,0.03204819]
[1747310863668,0.74108773,102310.0,102300.0,0.03204819]
[1747310864017,0.52384773,102310.0,102300.0,0.03204819]
[1747310864217,0.74100773,102310.0,102300.0,0.03204819]
[1747310865719,0.74100773,102310.0,102300.0,0.03815719]
[1747310866565,0.74100773,102310.0,102300.0,0.08408011]
[1747310869412,0.73996773,102310.0,102300.0,0.08408011]
[1747310872258,0.30656773,102310.0,102300.0,0.08408011]
[1747310875648,0.39779649,102310.0,102300.0,0.08408011]
[1747310876100,0.30656773,102310.0,102300.0,0.05208011]
[1747310876302,0.30656773,102310.0,102300.0,0.08448011]
[1747310876767,0.73880773,102310.0,102300.0,0.08448011]
[1747310877511,0.73880773,102310.0,102300.0,0.03855719]
[1747310877938,0.30656773,102310.0,102300.0,0.03855719]
[1747310882027,0.30656773,102310.0,102300.0,0.0470052]
[1747310882234,0.30656773,102310.0,102300.0,0.03855719]
[1747310882679,0.30456773,102310.0,102300.0,0.03855719]
[1747310882856,0.30256773,102310.0,102300.0,0.03855719]
[1747310884007,0.30256773,102310.0,102300.0,0.23406061]
[1747310884246,0.51676773,102310.0,102300.0,0.03855719]
[1747310884459,0.51676773,102310.0,102300.0,0.03855691]
[1747310885288,0.73388773,102310.0,102300.0,0.03855691]
[1747310886295,0.73388773,102310.0,102300.0,0.03955691]
[1747310886725,0.73388773,102310.0,102300.0,0.04155691]
[1747310886905,0.73388773,102310.0,102300.0,0.04155705]
[1747310888070,0.73388773,102310.0,102300.0,0.08747997]
[1747310890228,0.82460934,102310.0,102300.0,0.05507997]
[1747310890442,0.73388773,102310.0,102300.0,0.05507997]
[1747310892386,0.72768773,102310.0,102300.0,0.05507997]
[1747310892589,0.72768773,102310.0,102300.0,0.05207997]
[1747310893334,0.74414773,102310.0,102300.0,0.05207997]
[1747310893559,0.85725713,102310.0,102300.0,0.05207997]
[1747310894287,0.85725713,102310.0,102300.0,0.04597111]
[1747310894657,0.85725713,102310.0,102300.0,0.05208058]
[1747310895439,0.75994773,102310.0,102300.0,0.05208058]
[1747310895868,0.72764773,102310.0,102300.0,0.05208058]
[1747310896083,0.30256773,102310.0,102300.0,0.08498058]
[1747310896350,0.52526194,102310.0,102300.0,0.07887111]
[1747310896555,0.52526194,102310.0,102300.0,0.03294819]
[1747310897394,0.52526194,102310.0,102300.0,0.0408353]
[1747310898041,0.52526194,102310.0,102300.0,0.03294819]
[1747310898603,0.52526194,102310.0,102300.0,0.07887111]
[1747310899694,0.52526194,102310.0,102300.0,0.08787111]
[1747310899895,0.31234194,102310.0,102300.0,0.08387111]
[1747310900104,0.31234194,102310.0,102300.0,0.08497959]
[1747310900302,0.31234194,102310.0,102300.0,0.08897959]
[1747310900451,0.31234194,102310.0,102300.0,0.08797959]
[1747310900855,0.31234194,102310.0,102300.0,0.09097959]
[1747310902063,0.31234194,102310.0,102300.0,0.09097986]
[1747310903512,0.31234194,102310.0,102300.0,0.09097988]
[1747310904120,0.31234194,102310.0,102300.0,0.10027336]
[1747310904671,0.21503254,102310.0,102300.0,0.11676915]
[1747310904876,0.21503254,102310.0,102300.0,0.11481421]
[1747310905189,0.19548431,102310.0,102300.0,0.31227246]
[1747310905389,0.01954565,102320.0,102310.0,0.23934665]
[1747310905689,0.2247843,102320.0,102310.0,0.24999937]
[1747310905892,0.2247843,102320.0,102310.0,0.25977349]
[1747310906562,0.21501143,102320.0,102310.0,0.05651506]
[1747310906737,0.20523846,102320.0,102310.0,0.04869547]
[1747310906917,0.20523846,102320.0,102310.0,0.04969547]
[1747310907895,0.20523846,102320.0,102310.0,0.05965767]
[1747310908094,0.20523846,102320.0,102310.0,0.06576644]
[1747310908505,0.20523846,102320.0,102310.0,0.06381182]
[1747310910403,0.20523846,102320.0,102310.0,0.06576645]
[1747310914363,0.20523846,102320.0,102310.0,0.26125076]
[1747310914573,0.20523846,102320.0,102310.0,0.26907034]
[1747310914781,0.20523846,102320.0,102310.0,0.25929613]
[1747310914982,0.20523846,102320.0,102310.0,0.26907034]
[1747310915211,0.20523846,102320.0,102310.0,0.27884436]
[1747310915899,0.20523846,102320.0,102310.0,0.26907034]
[1747310916547,0.20523846,102320.0,102310.0,0.28861848]
[1747310916917,0.20523846,102320.0,102310.0,0.33463766]
[1747310917149,0.20523846,102320.0,102310.0,0.32486364]
[1747310917935,0.20523846,102320.0,102310.0,0.109831]
[1747310918136,0.1954652,102320.0,102310.0,0.109831]
[1747310918898,0.1954652,102320.0,102310.0,0.10982982]
[1747310919339,0.1954652,102320.0,102310.0,0.10982983]
[1747310921261,0.1954652,102320.0,102310.0,0.31508835]
[1747310923453,0.1954652,102320.0,102310.0,0.10982983]
[1747310923588,0.1954652,102320.0,102310.0,0.11178446]
[1747310923976,0.1954652,102320.0,102310.0,0.13521623]
[1747310924179,0.1954652,102320.0,102310.0,0.11178446]
[1747310924615,0.1954652,102320.0,102310.0,0.30726877]
[1747310924815,0.1954652,102320.0,102310.0,0.10982983]
[1747310925015,0.1954652,102320.0,102310.0,0.11178446]
[1747310925262,0.1954652,102320.0,102310.0,0.10878446]
[1747310925419,0.1954652,102320.0,102310.0,0.11278446]
[1747310925615,0.1954652,102320.0,102310.0,0.11378446]
[1747310926542,0.1954652,102320.0,102310.0,0.11778446]
[1747310926989,0.1954652,102320.0,102310.0,0.11278446]
[1747310927330,0.01954374,102330.0,102320.0,0.26065198]
[1747310927491,0.22476204,102330.0,102320.0,0.24110605]
[1747310927688,0.2052183,102330.0,102320.0,0.04564085]
[1747310927894,0.2052183,102330.0,102320.0,0.05174845]
[1747310928702,0.2052183,102330.0,102320.0,0.05374845]
[1747310929425,0.2052183,102330.0,102320.0,0.05574845]
[1747310929786,0.2052183,102330.0,102320.0,0.03984845]
[1747310929997,0.2052183,102330.0,102320.0,0.08586763]
[1747310930626,0.3177277,102330.0,102320.0,0.07066763]
[1747310931152,0.7456477,102330.0,102320.0,0.05612678]
[1747310931601,0.78201815,102330.0,102320.0,0.05612678]
[1747310931802,0.7456477,102330.0,102320.0,0.05612678]
[1747310932206,0.7456477,102330.0,102320.0,0.05001918]
[1747310932607,0.7456477,102330.0,102320.0,0.04801918]
[1747310932806,0.7456477,102330.0,102320.0,0.0571273]
[1747310933244,0.7456477,102330.0,102320.0,0.0551273]
[1747310933777,0.7456477,102330.0,102320.0,0.04901918]
[1747310934328,0.7456477,102330.0,102320.0,0.05812731]
[1747310934699,0.7456477,102330.0,102320.0,0.00910813]
[1747310935222,0.7456477,102330.0,102320.0,0.01010813]
[1747310935424,0.7456477,102330.0,102320.0,0.00710813]
[1747310935731,0.7456477,102330.0,102320.0,0.00810813]
[1747310936496,0.8429571,102330.0,102320.0,0.00810813]
[1747310937122,0.8429571,102330.0,102320.0,0.002]
[1747310938641,0.7456477,102330.0,102320.0,0.002]
[1747310939069,1.1678077,102330.0,102320.0,0.002]
[1747310939679,1.1664877,102330.0,102320.0,0.002]
[1747310940076,0.7550877,102330.0,102320.0,0.002]
[1747310940431,1.1664077,102330.0,102320.0,0.002]
[1747310940656,1.1663277,102330.0,102320.0,0.002]
[1747310940779,1.1662877,102330.0,102320.0,0.00810823]
[1747310940982,1.2635971,102330.0,102320.0,0.00810823]
[1747310941210,1.2635971,102330.0,102320.0,0.002]
[1747310945160,1.1662877,102330.0,102320.0,0.002]
[1747310948157,1.5062877,102330.0,102320.0,0.002]
[1747310957003,1.3023677,102330.0,102320.0,0.002]
[1747310957212,1.2871677,102330.0,102320.0,0.002]
[1747310957414,1.4707677,102330.0,102320.0,0.002]
[1747310957557,1.4707677,102330.0,102320.0,0.033]
[1747310958163,1.2682877,102330.0,102320.0,0.033]
[1747310958369,1.4706077,102330.0,102320.0,0.033]
[1747310958568,1.4706077,102330.0,102320.0,0.0176]
[1747310958963,1.4706077,102330.0,102320.0,0.002]
[1747310960095,1.4706077,102330.0,102320.0,0.0335]
[1747310960295,1.0646877,102330.0,102320.0,0.0335]
[1747310960498,1.4705277,102330.0,102320.0,0.0335]
[1747310961073,1.4704877,102330.0,102320.0,0.0335]
[1747310963433,1.5677971,102330.0,102320.0,0.0335]
[1747310963651,1.5677971,102330.0,102320.0,0.002]
[1747310963896,1.6001971,102330.0,102320.0,0.002]
[1747310965474,1.6276239,102330.0,102320.0,0.002]
[1747310965910,1.6276239,102330.0,102320.0,0.001]
[1747310966119,1.6286239,102330.0,102320.0,0.001]
[1747310966322,1.6010771,102330.0,102320.0,0.001]
[1747310966561,1.1953971,102330.0,102320.0,0.001]
[1747310966737,0.21503206,102310.0,102300.0,0.03194819]
[1747310966987,0.31234146,102310.0,102300.0,0.03194819]
[1747310967339,0.51594146,102310.0,102300.0,0.03194819]
[1747310968153,0.51594146,102310.0,102300.0,0.03394819]
[1747310968569,0.51594146,102310.0,102300.0,0.03594819]
[1747310969849,0.51594146,102310.0,102300.0,0.05048904]
[1747310970390,0.31234146,102310.0,102300.0,0.05048904]
[1747310971444,0.31234146,102310.0,102300.0,0.04848904]
[1747310971687,0.31234146,102310.0,102300.0,0.05048904]
[1747310971899,0.31234146,102310.0,102300.0,0.05448904]
[1747310972569,0.31234146,102310.0,102300.0,0.05048904]
[1747310972743,0.31234146,102310.0,102300.0,0.05448904]
[1747310976681,0.31234146,102310.0,102300.0,0.24999246]
[1747310976916,0.31234185,102310.0,102300.0,0.25976763]
[1747310977122,0.30256783,102310.0,102300.0,0.05448904]
[1747310981368,0.30256783,102310.0,102300.0,0.02354819]
[1747310981528,0.30256783,102310.0,102300.0,0.00804819]
[1747310982773,0.30256783,102310.0,102300.0,0.01415713]
[1747310983619,0.30256783,102310.0,102300.0,0.00804819]
[1747310983830,0.31916783,102310.0,102300.0,0.00804819]
[1747310985064,0.30256783,102310.0,102300.0,0.00804819]
[1747310986196,0.31846783,102310.0,102300.0,0.00804819]
[1747310986771,0.30256783,102310.0,102300.0,0.00804819]
[1747310993082,0.39987723,102310.0,102300.0,0.00804819]
[1747310993507,0.30256783,102310.0,102300.0,0.00804819]
[1747310994599,0.30256783,102310.0,102300.0,0.05328904]
[1747310995053,0.50256783,102310.0,102300.0,0.05328904]
[1747311001056,0.2150287,102320.0,102310.0,0.25219918]
[1747311001302,0.3123381,102320.0,102310.0,0.24242516]
[1747311001509,0.19548247,102320.0,102310.0,0.05671506]
[1747311001748,0.19548247,102320.0,102310.0,0.24251797]
[1747311001959,0.19548247,102320.0,102310.0,0.24056334]
[1747311002413,0.3954461,102330.0,102320.0,0.26025218]
[1747311002414,0.40521802,102330.0,102320.0,0.26025218]
[1747311002629,0.02931566,102330.0,102320.0,0.45387305]
[1747311002817,0.22476176,102330.0,102320.0,0.45387362]
[1747311003062,0.23453406,102330.0,102320.0,0.45387381]
[1747311003301,0.21499051,102330.0,102320.0,0.04524085]
[1747311003709,0.21499051,102330.0,102320.0,0.04824085]
[1747311003920,0.21499051,102330.0,102320.0,0.25347931]
[1747311004099,0.2052184,102330.0,102320.0,0.04824085]
[1747311004307,0.2052184,102330.0,102320.0,0.04524085]
[1747311004510,0.2052184,102330.0,102320.0,0.25347931]
[1747311004840,0.2052184,102330.0,102320.0,0.04924085]
[1747311006550,0.2052184,102330.0,102320.0,0.05906277]
[1747311009100,0.3025278,102330.0,102320.0,0.04924085]
[1747311009566,0.3025278,102330.0,102320.0,0.0952434]
[1747311010519,0.31229943,102330.0,102320.0,0.0952434]
[1747311010722,0.00977154,102330.0,102320.0,0.59233636]
[1747311010928,0.23453415,102330.0,102320.0,0.5806089]
[1747311011081,0.22476252,102330.0,102320.0,0.30048186]
[1747311011287,0.22476252,102330.0,102320.0,0.31025502]
[1747311011715,0.22476252,102330.0,102320.0,0.0952434]
[1747311011924,0.2149906,102330.0,102320.0,0.0952434]
[1747311012484,0.3123,102330.0,102320.0,0.0952434]
[1747311014977,0.3123,102330.0,102320.0,0.0645434]
[1747311017922,0.3123,102330.0,102320.0,0.0964434]
[1747311018854,0.3123,102330.0,102320.0,0.05044085]
[1747311019985,0.3123,102330.0,102320.0,0.25567911]
[1747311020205,0.24350791,102350.0,102340.0,0.0305]
[1747311020507,0.49091731,102350.0,102340.0,0.0305]
[1747311021052,0.00977115,102340.0,102330.0,0.0163]
[1747311021276,0.30250755,102340.0,102330.0,0.04664085]
[1747311021474,0.30250755,102340.0,102330.0,0.04668904]
[1747311021678,0.30250755,102340.0,102330.0,0.01458904]
[1747311021907,0.30250755,102340.0,102330.0,4.819e-05]
[1747311022589,0.30250755,102340.0,102330.0,0.00204819]
[1747311022802,0.30250755,102340.0,102330.0,0.04805074]
[1747311023224,0.30250755,102340.0,102330.0,0.05105074]
[1747311024065,0.30250755,102340.0,102330.0,0.08325074]
[1747311024903,0.30250755,102340.0,102330.0,0.03724819]
[1747311025356,0.30250755,102340.0,102330.0,0.00504819]
[1747311026199,0.30250755,102340.0,102330.0,0.03784819]
[1747311034977,0.30250755,102340.0,102330.0,0.08385074]
[1747311035195,0.30250755,102340.0,102330.0,0.06765074]
[1747311035403,0.30250755,102340.0,102330.0,0.08305074]
[1747311035808,0.30250755,102340.0,102330.0,0.06765074]
[1747311036287,0.30250755,102340.0,102330.0,0.05105074]
[1747311038782,0.30250755,102340.0,102330.0,0.08185074]
[1747311039223,0.30250755,102340.0,102330.0,0.30160999]
[1747311039447,0.21090619,102360.0,102340.0,0.04385374]
[1747311039731,0.13638581,102360.0,102350.0,0.46463547]
[1747311039936,0.0973094,102360.0,102350.0,0.46463537]
[1747311040158,0.22467365,102370.0,102360.0,0.26006806]
[1747311040422,0.31221562,102370.0,102360.0,0.24052967]
[1747311040642,0.13638142,102370.0,102360.0,0.44387425]
[1747311040859,0.33175115,102370.0,102360.0,0.26006826]
[1747311041089,0.32198343,102370.0,102360.0,0.26006826]
[1747311041317,0.31221562,102370.0,102360.0,0.04514085]
[1747311041532,0.31221562,102370.0,102360.0,0.05491029]
[1747311041670,0.31221562,102370.0,102360.0,0.04514085]
[1747311043279,0.30244752,102370.0,102360.0,0.04514085]
[1747311044015,0.30244752,102370.0,102360.0,0.0911434]
[1747311047334,0.20519068,102380.0,102370.0,0.25077906]
[1747311047560,0.31226732,102380.0,102370.0,0.04564085]
[1747311050052,0.31226732,102380.0,102370.0,0.04764085]
[1747311062936,0.31226732,102380.0,102370.0,0.01654085]
[1747311064191,0.31226732,102380.0,102370.0,0.04784085]
[1747311064816,0.21488428,102380.0,102370.0,0.54461819]
[1747311065014,0.224652,102380.0,102370.0,0.54266461]
[1747311065226,0.21488504,102380.0,102370.0,0.53289651]
[1747311065404,0.21488504,102380.0,102370.0,0.54266471]
[1747311066253,0.20511799,102380.0,102370.0,0.54266471]
[1747311067220,0.20511799,102380.0,102370.0,0.26274717]
[1747311068730,0.40664265,102400.0,102380.0,0.22942627]
[1747311068969,0.23439653,102390.0,102380.0,0.55977782]
[1747311069166,0.03906487,102390.0,102380.0,0.56954468]
[1747311069484,0.02929848,102390.0,102380.0,0.56954468]
[1747311069696,0.03906496,102390.0,102380.0,0.56954468]
[1747311070125,0.2441631,102390.0,102380.0,0.55977782]
[1747311070468,0.2441631,102390.0,102380.0,0.27986028]
[1747311070921,0.2441631,102390.0,102380.0,0.26032627]
[1747311071126,0.23439719,102390.0,102380.0,0.27209342]
[1747311071721,0.23439719,102390.0,102380.0,0.28186047]
[1747311072254,0.224631,102390.0,102380.0,0.28486047]
[1747311073726,0.40130817,102400.0,102390.0,0.0308]
[1747311074062,0.20518817,102400.0,102390.0,0.0308]
[1747311074799,0.20518817,102400.0,102390.0,0.0328]
[1747311075187,0.20518817,102400.0,102390.0,0.23789814]
[1747311075823,0.19542265,102400.0,102390.0,0.23789814]
[1747311076721,0.19542265,102400.0,102390.0,0.04256657]
[1747311077757,0.19542265,102400.0,102390.0,0.0328]
[1747311084100,0.20518817,102400.0,102390.0,0.42148436]
[1747311084735,0.20518817,102400.0,102390.0,0.23789795]
[1747311086664,0.20518817,102400.0,102390.0,0.002]
[1747311086868,0.20518817,102400.0,102390.0,0.19733157]
[1747311087031,0.20518817,102400.0,102390.0,0.20709814]
[1747311087230,0.20518817,102400.0,102390.0,0.002]
[1747311087634,0.20518817,102400.0,102390.0,0.19733157]
[1747311088035,0.20518817,102400.0,102390.0,0.26870069]
[1747311088681,0.20518817,102400.0,102390.0,0.28480069]
[1747311089099,0.19542265,102400.0,102390.0,0.04800255]
[1747311090337,0.32453205,102400.0,102390.0,0.04800255]
[1747311090483,0.32453205,102400.0,102390.0,0.0625434]
[1747311090838,0.32453205,102400.0,102390.0,0.06977449]
[1747311092583,0.32453205,102400.0,102390.0,0.04800255]
[1747311093203,0.51741205,102400.0,102390.0,0.002]
[1747311093327,0.71029205,102400.0,102390.0,0.002]
[1747311095203,0.23589795,102390.0,102380.0,0.04600255]
[1747311095410,0.33320735,102390.0,102380.0,0.04600255]
[1747311095608,0.19535065,102380.0,102370.0,0.04600255]
[1747311095805,0.52610739,102380.0,102370.0,0.04600255]
[1747311096025,0.71898739,102380.0,102370.0,0.04600255]
[1747311099412,0.72863315,102380.0,102370.0,0.04600255]
[1747311101057,1.06863315,102380.0,102370.0,0.04600255]
[1747311101263,1.16594255,102380.0,102370.0,0.04600255]
[1747311106343,1.17594255,102380.0,102370.0,0.04600255]
[1747311106713,0.24572703,102360.0,102350.0,0.05954361]
[1747311106909,0.77697643,102360.0,102350.0,0.05954361]
[1747311107328,0.77693643,102360.0,102350.0,0.05954361]
[1747311107968,0.83559643,102360.0,102350.0,0.05954361]
[1747311108120,0.77693643,102360.0,102350.0,0.06154361]
[1747311108825,0.77693643,102360.0,102350.0,0.06254361]
[1747311109028,1.53893643,102360.0,102350.0,0.06254361]
[1747311109399,1.53893643,102360.0,102350.0,0.06054361]
[1747311110354,1.53893643,102360.0,102350.0,0.05954361]
[1747311110988,1.54193643,102360.0,102350.0,0.05954361]
[1747311112607,1.15609643,102360.0,102350.0,0.05954361]
[1747311112811,1.54193643,102360.0,102350.0,0.05954361]
[1747311113032,1.52673643,102360.0,102350.0,0.05954361]
[1747311113608,1.14089643,102360.0,102350.0,0.05954361]
[1747311113817,1.51113643,102360.0,102350.0,0.05954361]
[1747311114562,1.51113643,102360.0,102350.0,0.05958361]
[1747311115216,1.12529643,102360.0,102350.0,0.05958361]
[1747311115554,1.51113643,102360.0,102350.0,0.05958361]
[1747311118861,1.51113643,102360.0,102350.0,0.09188361]
[1747311119072,1.51113643,102360.0,102350.0,0.05958361]
[1747311120497,1.51113643,102360.0,102350.0,0.09138361]
[1747311121286,1.51109643,102360.0,102350.0,0.09138361]
[1747311121682,1.12529643,102360.0,102350.0,0.09138361]
[1747311121882,1.31821643,102360.0,102350.0,0.09138361]
[1747311123095,0.36329643,102360.0,102350.0,0.31110267]
[1747311123317,0.31276703,102360.0,102350.0,0.59102144]
[1747311123526,0.33477424,102360.0,102350.0,0.54124793]
[1747311123743,0.23746484,102360.0,102350.0,0.55101794]
[1747311123940,0.23746484,102360.0,102350.0,0.53147783]
[1747311123941,0.21792721,102360.0,102350.0,0.53147783]
[1747311124144,0.20815816,102360.0,102350.0,0.32629962]
[1747311124372,0.19538882,102360.0,102350.0,0.04638085]
[1747311124617,0.19538882,102360.0,102350.0,0.05038085]
[1747311128384,0.29269822,102360.0,102350.0,0.05038085]
[1747311128641,0.29269822,102360.0,102350.0,0.00404]
[1747311128852,0.48561822,102360.0,102350.0,0.00404]
[1747311129145,0.50081822,102360.0,102350.0,0.00404]
[1747311129300,0.48561822,102360.0,102350.0,0.00404]
[1747311129522,0.48561822,102360.0,102350.0,0.03544]
[1747311129739,0.48561822,102360.0,102350.0,0.04998085]
[1747311129940,0.31223691,102360.0,102350.0,0.24538876]
[1747311130146,0.31223691,102360.0,102350.0,0.04998085]
[1747311135327,0.31223691,102360.0,102350.0,0.03428085]
[1747311135466,0.31223691,102360.0,102350.0,0.00404]
[1747311136670,0.31223691,102360.0,102350.0,0.03614]
[1747311136813,0.31223691,102360.0,102350.0,0.05957177]
[1747311137143,0.31223691,102360.0,102350.0,0.03614]
[1747311138126,0.31223691,102360.0,102350.0,0.01984]
[1747311138936,0.31223691,102360.0,102350.0,0.03634]
[1747311144881,0.31223691,102360.0,102350.0,0.00404]
[1747311145298,0.34323691,102360.0,102350.0,0.00404]
[1747311146490,0.72879691,102360.0,102350.0,0.00204]
[1747311146689,0.71299691,102360.0,102350.0,0.00404]
[1747311146891,0.71299691,102360.0,102350.0,0.00204]
[1747311147449,0.72819691,102360.0,102350.0,4e-05]
[1747311147660,0.69879691,102360.0,102350.0,4e-05]
[1747311148339,0.69879691,102360.0,102350.0,0.03154]
[1747311152255,0.50603691,102360.0,102350.0,0.24148876]
[1747311152452,0.49626766,102360.0,102350.0,0.04608085]
[1747311156576,0.51246766,102360.0,102350.0,4e-05]
[1747311156791,0.52816766,102360.0,102350.0,4e-05]
[1747311157441,0.72088766,102360.0,102350.0,4e-05]
[1747311161300,0.30346766,102360.0,102350.0,4e-05]
[1747311161543,0.68898766,102360.0,102350.0,0.03074]
[1747311163464,0.30346766,102360.0,102350.0,0.03074]
[1747311173747,0.30346766,102360.0,102350.0,4e-05]
[1747311174191,0.49614766,102360.0,102350.0,4e-05]
[1747311174796,0.49614766,102360.0,102350.0,0.01594]
[1747311175962,0.49614766,102360.0,102350.0,4e-05]
[1747311176707,0.61948513,102360.0,102350.0,4e-05]
[1747311176912,0.52794766,102360.0,102350.0,4e-05]
[1747311180276,0.52794766,102360.0,102350.0,0.0061465]
[1747311180676,0.52794766,102360.0,102350.0,4e-05]
[1747311184726,0.52794766,102360.0,102350.0,0.00614655]
[1747311184957,0.52794766,102360.0,102350.0,4e-05]
[1747311188246,0.68874766,102360.0,102350.0,4e-05]
[1747311189171,0.68874766,102360.0,102350.0,0.00614649]
[1747311190250,0.68874766,102360.0,102350.0,4e-05]
[1747311193946,0.30346766,102360.0,102350.0,4e-05]
[1747311194155,0.68870766,102360.0,102350.0,0.03104]
[1747311195931,0.30346766,102360.0,102350.0,4e-05]
[1747311196130,0.49598766,102360.0,102350.0,4e-05]
[1747311197532,0.49598766,102360.0,102350.0,0.01564]
[1747311199099,0.49598766,102360.0,102350.0,0.03194]
[1747311200262,0.30346766,102360.0,102350.0,0.03194]
[1747311200467,0.49598766,102360.0,102350.0,0.03194]
[1747311202792,0.49598766,102360.0,102350.0,0.01564]
[1747311202995,0.49598766,102360.0,102350.0,4e-05]
[1747311210975,0.52818766,102360.0,102350.0,4e-05]
[1747311213117,0.89564807,102360.0,102350.0,4e-05]
[1747311213772,0.86818766,102360.0,102350.0,4e-05]
[1747311214194,0.92584766,102360.0,102350.0,4e-05]
[1747311214429,0.95629565,102360.0,102350.0,4e-05]
[1747311214647,1.02615706,102360.0,102350.0,4e-05]
[1747311215050,1.05359845,102360.0,102350.0,4e-05]
[1747311215482,1.02615706,102360.0,102350.0,4e-05]
[1747311216455,1.05359148,102360.0,102350.0,4e-05]
[1747311217631,1.02615706,102360.0,102350.0,4e-05]
[1747311224148,1.03615706,102360.0,102350.0,4e-05]
[1747311224358,1.06356768,102360.0,102350.0,4e-05]
[1747311225175,1.07356768,102360.0,102350.0,4e-05]
[1747311225364,0.1954461,102330.0,102310.0,0.0321]
[1747311225578,0.72827553,102320.0,102310.0,0.0321]
[1747311225775,0.72585197,102320.0,102310.0,0.0321]
[1747311226007,0.21503206,102310.0,102300.0,0.09134361]
[1747311226148,0.31234146,102310.0,102300.0,0.09134361]
[1747311226546,0.31234146,102310.0,102300.0,0.0913918]
[1747311228551,0.31234146,102310.0,102300.0,0.03584819]
[1747311228736,0.31234146,102310.0,102300.0,0.03984819]
[1747311235688,0.31234146,102310.0,102300.0,0.33430781]
[1747311235895,0.31234146,102310.0,102300.0,0.52981123]
[1747311235896,0.32211558,102310.0,102300.0,0.52981123]
[1747311236096,0.32211558,102310.0,102300.0,0.33430781]
[1747311236097,0.31234185,102310.0,102300.0,0.33430781]
[1747311236318,0.31234185,102310.0,102300.0,0.05438904]
[1747311237318,0.31234185,102310.0,102300.0,0.0643712]
[1747311241011,0.31234185,102310.0,102300.0,0.25987462]
[1747311241211,0.31234185,102310.0,102300.0,0.0643712]
[1747311245084,0.31234185,102310.0,102300.0,0.05438904]
[1747311245958,0.32190676,102310.0,102300.0,0.03984819]
[1747311246158,0.31234185,102310.0,102300.0,0.03904819]
[1747311246366,0.50474185,102310.0,102300.0,0.03904819]
[1747311247008,0.50474185,102310.0,102300.0,0.05358904]
[1747311247249,0.31234185,102310.0,102300.0,0.33350781]
[1747311247444,0.31234136,102310.0,102300.0,0.54856108]
[1747311247655,0.32211557,102310.0,102300.0,0.33350781]
[1747311247862,0.32211548,102310.0,102300.0,0.54856128]
[1747311248059,0.33188969,102310.0,102300.0,0.55833597]
[1747311248275,0.23458029,102310.0,102300.0,0.55833597]
[1747311248504,0.22480656,102310.0,102300.0,0.54856128]
[1747311248904,0.20525852,102310.0,102300.0,0.54856147]